bitfinex/quotes_BTCUSD_20240819
["timestamp","ask_amount","ask_price","bid_price","bid_amount"]
[1724078755319,0.00932001,58484.0,58483.0,4.19608322]
[1724078755457,0.00932001,58484.0,58483.0,4.1263256]
[1724078755839,0.00932001,58484.0,58483.0,4.1303256]
[1724078756043,0.00932001,58484.0,58483.0,4.13228322]
[1724078756485,0.00932001,58484.0,58483.0,4.1443256]
[1724078756942,0.00932001,58484.0,58483.0,4.14628322]
[1724078757770,0.00932001,58484.0,58483.0,4.14828322]
[1724078758955,0.0115555,58493.0,58492.0,1.619471]
[1724078759157,0.0115555,58493.0,58492.0,2.55500439]
[1724078759359,0.0115555,58493.0,58492.0,2.61052543]
[1724078759717,0.0115555,58493.0,58492.0,4.05104677]
[1724078760158,0.0115555,58493.0,58492.0,4.06004677]
[1724078760366,0.0115555,58493.0,58492.0,3.97824677]
[1724078760781,0.0115555,58493.0,58492.0,3.98955787]
[1724078761564,0.0115555,58493.0,58492.0,4.00451549]
[1724078761764,0.0115555,58493.0,58492.0,4.00255787]
[1724078761990,0.0115555,58493.0,58492.0,4.00155787]
[1724078762434,0.0123745,58493.0,58492.0,4.00155787]
[1724078762567,0.0123745,58493.0,58492.0,3.97955787]
[1724078762744,0.0123745,58493.0,58492.0,3.99355787]
[1724078763151,0.1532745,58493.0,58492.0,3.62863087]
[1724078763379,0.1532745,58493.0,58492.0,3.63863087]
[1724078763778,0.1532745,58493.0,58492.0,2.90240387]
[1724078764218,0.0757745,58493.0,58492.0,3.19670387]
[1724078764413,0.0757745,58493.0,58492.0,3.53863087]
[1724078764784,0.0757745,58493.0,58492.0,3.52863087]
[1724078765035,0.0757745,58493.0,58492.0,3.23433087]
[1724078765036,0.1528745,58493.0,58492.0,3.23433087]
[1724078765238,0.1526095,58493.0,58492.0,3.34333087]
[1724078765626,0.1526095,58493.0,58492.0,3.34933087]
[1724078766300,0.1526095,58493.0,58492.0,3.01340387]
[1724078766507,0.1526095,58493.0,58492.0,2.460817]
[1724078766814,0.1526095,58493.0,58492.0,2.802744]
[1724078767187,0.0755095,58493.0,58492.0,3.31601977]
[1724078767954,0.0755095,58493.0,58492.0,3.34201977]
[1724078768314,0.0755095,58493.0,58492.0,3.33601977]
[1724078768645,0.0755095,58493.0,58492.0,3.33801977]
[1724078768852,0.0755095,58493.0,58492.0,2.99609277]
[1724078768853,0.1570095,58493.0,58492.0,2.99609277]
[1724078769478,0.1570095,58493.0,58492.0,3.33601977]
[1724078769654,0.0755095,58493.0,58492.0,3.33601977]
[1724078769852,0.0755095,58493.0,58492.0,3.34201977]
[1724078770690,0.0755095,58493.0,58492.0,3.00009277]
[1724078771097,0.0755095,58493.0,58492.0,2.99709277]
[1724078771300,0.0755095,58493.0,58492.0,3.33301977]
[1724078771499,0.0755095,58493.0,58492.0,3.33801977]
[1724078771708,0.0755095,58493.0,58492.0,3.34601977]
[1724078773063,0.0121095,58493.0,58492.0,3.68794677]
[1724078773274,0.0121095,58493.0,58492.0,3.68894677]
[1724078773482,0.0121095,58493.0,58492.0,3.68794677]
[1724078773900,0.0121095,58493.0,58492.0,3.68894677]
[1724078774102,0.0121095,58493.0,58492.0,3.68394677]
[1724078774528,0.0121095,58493.0,58492.0,3.68094677]
[1724078774932,0.0121095,58493.0,58492.0,3.69394677]
[1724078775124,0.0121095,58493.0,58492.0,3.68994677]
[1724078775329,0.0121095,58493.0,58492.0,3.68594677]
[1724078776368,0.0121095,58493.0,58492.0,3.67594677]
[1724078776553,0.0121095,58493.0,58492.0,3.67494677]
[1724078776770,0.0729095,58493.0,58492.0,3.31001977]
[1724078776970,0.0729095,58493.0,58492.0,3.42651977]
[1724078777552,0.08232556,58493.0,58492.0,3.42651977]
[1724078777688,0.0729095,58493.0,58492.0,3.42651977]
[1724078777922,0.0729095,58493.0,58492.0,3.45451977]
[1724078778705,0.0729095,58493.0,58492.0,3.47751977]
[1724078778706,0.08232591,58493.0,58492.0,3.47751977]
[1724078778983,0.0729095,58493.0,58492.0,3.47751977]
[1724078779428,0.08232591,58493.0,58492.0,3.47751977]
[1724078779630,0.16192591,58493.0,58492.0,3.47751977]
[1724078780607,0.1525095,58493.0,58492.0,3.47751977]
[1724078780813,0.08232552,58493.0,58492.0,3.47751977]
[1724078781013,0.0002,58499.0,58498.0,1.538514]
[1724078781220,0.00961575,58499.0,58498.0,1.73286277]
[1724078781374,0.02572746,58499.0,58498.0,1.83286277]
[1724078781574,0.02572746,58499.0,58498.0,3.33286277]
[1724078781575,0.00961575,58499.0,58498.0,3.33286277]
[1724078782199,0.00961575,58499.0,58498.0,3.33986277]
[1724078782605,0.00961578,58499.0,58498.0,3.33986277]
[1724078783672,0.00961578,58499.0,58498.0,3.34986277]
[1724078784002,0.00961578,58499.0,58498.0,3.69175477]
[1724078784161,0.0002,58499.0,58498.0,3.69175477]
[1724078785400,0.0002,58499.0,58498.0,3.34986277]
[1724078787435,0.0002,58499.0,58498.0,2.813622]
[1724078787436,0.15451519,58499.0,58498.0,2.813622]
[1724078788562,0.15451519,58499.0,58498.0,2.796622]
[1724078788772,0.15451519,58499.0,58498.0,2.799622]
[1724078788943,0.07421519,58499.0,58498.0,3.33586277]
[1724078789759,0.0648,58499.0,58498.0,3.33586277]
[1724078789907,0.07421559,58499.0,58498.0,3.33586277]
[1724078790307,0.05921559,58499.0,58498.0,3.33286277]
[1724078790519,0.05921506,58499.0,58498.0,3.33286277]
[1724078790724,0.05921506,58499.0,58498.0,3.33986277]
[1724078790927,0.05921506,58499.0,58498.0,3.33386277]
[1724078791142,0.05921556,58499.0,58498.0,3.33386277]
[1724078791341,0.05921556,58499.0,58498.0,3.33786277]
[1724078792243,0.05921556,58499.0,58498.0,3.33766877]
[1724078793955,0.05921556,58499.0,58498.0,2.801428]
[1724078794172,0.14231556,58499.0,58498.0,2.801428]
[1724078794413,0.19359468,58499.0,58498.0,2.801428]
[1724078794601,0.19359475,58499.0,58498.0,2.801428]
[1724078795039,0.19359475,58499.0,58498.0,2.459536]
[1724078795246,0.15842736,58499.0,58498.0,2.801428]
[1724078795878,0.17469146,58499.0,58498.0,2.801428]
[1724078796082,0.15842736,58499.0,58498.0,2.801428]
[1724078796502,0.23534952,58499.0,58498.0,2.801428]
[1724078796733,0.23534952,58499.0,58498.0,3.60796877]
[1724078796734,0.00941563,58499.0,58498.0,3.60796877]
[1724078796975,0.0619,58502.0,58501.0,0.854685]
[1724078797164,0.07131481,58502.0,58501.0,1.83278177]
[1724078797803,0.00941481,58502.0,58501.0,2.17465577]
[1724078798008,0.0619,58506.0,58505.0,0.170925]
[1724078798253,0.07131427,58506.0,58505.0,1.14897577]
[1724078798457,0.07131427,58506.0,58505.0,1.83267777]
[1724078798458,0.071314,58506.0,58505.0,1.83267777]
[1724078798663,0.00041267,58508.0,58507.0,1.538275]
[1724078798884,0.00041267,58508.0,58507.0,1.83262377]
[1724078799287,0.00041267,58508.0,58507.0,3.75372039]
[1724078799497,0.00041267,58508.0,58507.0,3.81996277]
[1724078800311,0.00041267,58508.0,58507.0,4.16375939]
[1724078800483,0.00041267,58508.0,58507.0,4.16180177]
[1724078801109,0.00041267,58508.0,58507.0,4.16575939]
[1724078801328,0.00041267,58508.0,58507.0,4.17580177]
[1724078801532,0.00041267,58508.0,58507.0,4.22607939]
[1724078801533,6.7e-07,58508.0,58507.0,4.22607939]
[1724078801739,0.0003,58514.0,58513.0,2.02437962]
[1724078801943,0.0003,58514.0,58513.0,2.61502839]
[1724078802364,0.00902001,58518.0,58517.0,1.96195262]
[1724078802569,0.00902001,58518.0,58517.0,2.59808239]
[1724078802806,0.00902001,58518.0,58517.0,2.66238239]
[1724078803011,0.002,58532.0,58530.0,0.1425]
[1724078803216,0.1,58536.0,58530.0,0.1425]
[1724078803217,0.1,58536.0,58535.0,0.512512]
[1724078803426,0.0002,58539.0,58538.0,0.170829]
[1724078803639,0.0002,58539.0,58538.0,1.89042561]
[1724078803850,0.0002,58539.0,58538.0,3.75508361]
[1724078804067,0.0002,58539.0,58538.0,3.41342561]
[1724078804275,0.0002,58539.0,58538.0,3.40900977]
[1724078804684,0.0002,58539.0,58538.0,3.41700977]
[1724078804892,0.0002,58539.0,58538.0,3.43000977]
[1724078805101,0.0002,58539.0,58538.0,3.48300977]
[1724078805305,0.0002,58539.0,58538.0,3.47000977]
[1724078805513,0.0002,58539.0,58538.0,3.42300977]
[1724078805726,0.0002,58539.0,58538.0,3.43700977]
[1724078806137,0.0652,58539.0,58538.0,3.35980977]
[1724078806563,0.0652,58539.0,58538.0,2.99515177]
[1724078807000,0.0652,58539.0,58538.0,2.98115177]
[1724078807209,0.1474,58539.0,58538.0,2.96715177]
[1724078807419,0.1474,58539.0,58538.0,2.99115177]
[1724078807626,0.1474,58539.0,58538.0,0.978145]
[1724078807833,0.1474,58539.0,58538.0,0.854145]
[1724078808111,0.1474,58539.0,58538.0,1.36715177]
[1724078808317,0.1474,58539.0,58538.0,2.87615177]
[1724078808524,0.1474,58539.0,58538.0,2.87015177]
[1724078808525,0.0652,58539.0,58538.0,2.87015177]
[1724078808946,0.0652,58539.0,58538.0,3.24080977]
[1724078809151,0.0652,58539.0,58538.0,2.99615177]
[1724078809372,0.0652,58539.0,58538.0,2.97315177]
[1724078810374,0.0652,58539.0,58538.0,2.99615177]
[1724078810542,0.0652,58539.0,58538.0,2.99915177]
[1724078811702,0.0652,58539.0,58538.0,2.97615177]
[1724078811908,0.0652,58539.0,58538.0,2.98612593]
[1724078812357,0.1406,58539.0,58538.0,2.121487]
[1724078812772,0.1406,58539.0,58538.0,2.804803]
[1724078812985,0.1406,58539.0,58538.0,2.97615177]
[1724078813232,0.0652,58539.0,58538.0,2.97615177]
[1724078813647,0.0652,58539.0,58538.0,2.97315177]
[1724078813855,0.0652,58539.0,58538.0,2.96715177]
[1724078813856,0.06602,58539.0,58538.0,2.96715177]
[1724078814080,0.06602,58539.0,58538.0,2.96915177]
[1724078814525,0.06602,58539.0,58538.0,2.96715177]
[1724078814934,0.06602,58539.0,58538.0,2.457145]
[1724078815133,0.14922,58539.0,58538.0,1.295803]
[1724078815546,0.14922,58539.0,58538.0,2.96915177]
[1724078816108,0.14922,58539.0,58538.0,2.456145]
[1724078816551,0.14922,58539.0,58538.0,1.772829]
[1724078816755,0.14922,58539.0,58538.0,1.602]
[1724078816963,0.33587,58539.0,58538.0,1.5]
[1724078817272,0.14922,58539.0,58538.0,1.501]
[1724078817477,0.14922,58539.0,58538.0,1.670829]
[1724078817925,0.14922,58539.0,58538.0,1.5]
[1724078818343,0.320046,58539.0,58538.0,1.5]
[1724078818764,0.661698,58539.0,58538.0,1.5]
[1724078819079,0.17083,58538.0,58536.0,0.000902]
[1724078819282,0.99616,58537.0,58536.0,0.000902]
[1724078819487,0.142,58537.0,58536.0,0.000902]
[1724078819886,0.142,58537.0,58536.0,0.855077]
[1724078820117,0.142,58537.0,58536.0,1.196747]
[1724078820719,0.142,58537.0,58536.0,0.855077]
[1724078820929,0.142,58537.0,58536.0,0.856077]
[1724078821996,0.142,58537.0,58536.0,1.197747]
[1724078822112,0.142,58537.0,58536.0,0.856077]
[1724078822515,0.0655,58537.0,58536.0,0.856077]
[1724078822914,0.0655,58537.0,58536.0,0.855077]
[1724078823428,0.0655,58537.0,58536.0,2.013407]
[1724078823623,0.0655,58537.0,58536.0,2.696747]
[1724078824057,0.00102,58539.0,58538.0,0.854145]
[1724078824261,0.00102,58539.0,58538.0,1.70880977]
[1724078824508,0.00102,58539.0,58538.0,1.80880977]
[1724078824908,0.00102,58539.0,58538.0,1.83180977]
[1724078825527,0.00502,58539.0,58538.0,1.83180977]
[1724078825725,0.00502,58539.0,58538.0,2.24966777]
[1724078825926,0.00102,58539.0,58538.0,2.25066777]
[1724078826351,0.00102,58539.0,58538.0,1.90800977]
[1724078826550,0.00102,58539.0,58538.0,3.40800977]
[1724078826772,0.00102,58539.0,58538.0,3.33180977]
[1724078826971,0.00102,58539.0,58538.0,3.33280977]
[1724078827377,0.00202,58539.0,58538.0,3.33280977]
[1724078827583,0.00202,58539.0,58538.0,3.33180977]
[1724078827783,0.00102,58539.0,58538.0,3.33180977]
[1724078827990,0.00102,58539.0,58538.0,3.33480977]
[1724078828187,0.00102,58539.0,58538.0,3.34080977]
[1724078828404,0.00102,58539.0,58538.0,3.33180977]
[1724078828645,0.14572,58539.0,58538.0,2.97515177]
[1724078828772,0.14572,58539.0,58538.0,2.98015177]
[1724078828971,0.14572,58539.0,58538.0,2.97215177]
[1724078828972,0.06712,58539.0,58538.0,2.97215177]
[1724078829608,0.06712,58539.0,58538.0,2.97515177]
[1724078830084,0.06712,58539.0,58538.0,2.97015177]
[1724078830426,0.06712,58539.0,58538.0,2.457145]
[1724078830427,0.07652933,58539.0,58538.0,2.457145]
[1724078830632,0.15492933,58539.0,58538.0,0.003]
[1724078830857,0.1872825,58539.0,58538.0,0.003]
[1724078831055,0.6997605,58539.0,58538.0,0.003]
[1724078831273,0.512496,58537.0,58536.0,0.000902]
[1724078831478,1.0362225,58537.0,58536.0,0.000902]
[1724078831714,1.0372225,58537.0,58536.0,0.000902]
[1724078831916,0.6945585,58537.0,58536.0,0.000902]
[1724078832068,1.0372225,58537.0,58536.0,0.000902]
[1724078832271,0.6945585,58537.0,58536.0,0.000902]
[1724078833375,1.66004579,58537.0,58536.0,0.000902]
[1724078833607,0.1488,58528.0,58522.0,0.341749]
[1724078833806,0.0666,58524.0,58514.0,0.01017915]
[1724078834006,0.0666,58524.0,58509.0,1.28464632]
[1724078834007,0.08285286,58524.0,58523.0,0.512617]
[1724078834207,0.09211861,58524.0,58523.0,0.854362]
[1724078834431,0.09211861,58524.0,58523.0,0.512617]
[1724078834432,0.10837147,58524.0,58523.0,0.512617]
[1724078834846,0.10837147,58524.0,58523.0,1.196107]
[1724078835178,0.10837147,58524.0,58523.0,0.854362]
[1724078835179,0.00941284,58524.0,58523.0,0.854362]
[1724078835596,0.01141284,58524.0,58523.0,0.856362]
[1724078835794,0.01541284,58524.0,58523.0,0.856362]
[1724078836032,0.01141284,58524.0,58523.0,0.855362]
[1724078836484,0.01541284,58524.0,58523.0,0.856362]
[1724078836914,0.01341284,58524.0,58523.0,0.855362]
[1724078837241,0.01441284,58524.0,58523.0,0.856362]
[1724078837417,0.09771284,58524.0,58523.0,0.856362]
[1724078837819,0.09771284,58524.0,58523.0,0.857264]
[1724078837994,0.09771284,58524.0,58523.0,2.357264]
[1724078839067,0.01441284,58524.0,58523.0,2.357264]
[1724078839270,0.01441284,58524.0,58523.0,2.87035777]
[1724078840087,0.01441284,58524.0,58523.0,2.357264]
[1724078840594,0.01441223,58524.0,58523.0,2.357264]
[1724078841095,0.09741223,58524.0,58523.0,2.357264]
[1724078841501,0.1135179,58524.0,58523.0,2.015519]
[1724078841706,0.3460879,58524.0,58523.0,0.002902]
[1724078841929,0.19147538,58524.0,58523.0,0.002902]
[1724078842340,0.19147538,58524.0,58523.0,0.173774]
[1724078842547,0.19147538,58524.0,58523.0,0.002902]
[1724078842958,0.76250055,58524.0,58523.0,0.002902]
[1724078843184,0.47171191,58524.0,58523.0,0.002902]
[1724078843389,0.49733863,58524.0,58523.0,0.002902]
[1724078843640,0.77576843,58524.0,58523.0,0.002902]
[1724078843889,0.77576843,58524.0,58510.0,0.1]
[1724078843890,0.77576843,58524.0,58499.0,0.341881]
[1724078843891,0.1435,58515.0,58499.0,0.341881]
[1724078844090,0.1435,58515.0,58510.0,0.170909]
[1724078844091,0.1435,58513.0,58510.0,0.170909]
[1724078844329,0.0255179,58512.0,58508.0,0.170913]
[1724078844548,0.0626,58510.0,58500.0,1.5]
[1724078844757,0.0626,58508.0,58498.0,0.342792]
[1724078844968,0.0626,58508.0,58500.0,0.341879]
[1724078844969,0.0788,58503.0,58500.0,0.341879]
[1724078845174,0.0255263,58502.0,58501.0,0.341874]
[1724078845385,0.0255263,58502.0,58501.0,0.170937]
[1724078845586,0.0094154,58502.0,58501.0,0.170937]
[1724078845792,0.02552991,58502.0,58501.0,0.854685]
[1724078846006,0.0094154,58502.0,58501.0,0.854685]
[1724078846473,0.0626,58504.0,58503.0,0.512793]
[1724078846675,0.07201627,58504.0,58503.0,1.196517]
[1724078847284,0.0626,58504.0,58503.0,1.196517]
[1724078847715,0.05104727,58515.0,58501.0,0.001]
[1724078847716,0.0813,58511.0,58510.0,0.17091]
[1724078847923,0.12005456,58511.0,58510.0,0.512731]
[1724078848141,0.00941595,58511.0,58510.0,0.854552]
[1724078848552,0.00941595,58511.0,58506.0,0.341841]
[1724078848767,0.00941595,58511.0,58503.0,0.001]
[1724078848768,0.01704799,58511.0,58510.0,0.17091]
[1724078848971,0.0635,58512.0,58511.0,0.170908]
[1724078849177,0.07291555,58512.0,58511.0,0.85454]
[1724078849379,0.07291555,58512.0,58511.0,1.196356]
[1724078849380,0.0635,58512.0,58511.0,1.196356]
[1724078849584,0.1448,58521.0,58510.0,0.001]
[1724078849791,0.02552446,58520.0,58507.0,0.01001387]
[1724078850004,0.02552446,58519.0,58507.0,0.01001387]
[1724078850209,0.01626188,58520.0,58513.0,0.170901]
[1724078850210,0.170891,58517.0,58513.0,0.170901]
[1724078850421,0.00941482,58516.0,58515.0,0.170896]
[1724078850836,0.00941482,58516.0,58515.0,0.512688]
[1724078851055,0.00941482,58516.0,58515.0,0.85448]
[1724078851924,0.1448,58518.0,58517.0,0.854452]
[1724078851925,0.0635,58518.0,58517.0,0.854452]
[1724078852347,0.07291428,58518.0,58517.0,2.696233]
[1724078852550,0.01626104,58525.0,58524.0,0.17087]
[1724078852551,0.0813,58525.0,58524.0,0.17087]
[1724078852754,0.00941374,58525.0,58524.0,0.51261]
[1724078853164,0.22178357,58532.0,58517.0,1.5]
[1724078853165,0.00082,58537.0,58522.0,0.0828]
[1724078853371,0.0161049,58536.0,58534.0,0.17084]
[1724078853583,0.0161049,58535.0,58534.0,1e-08]
[1724078853791,0.1703173,58535.0,58534.0,0.34168101]
[1724078853974,0.1542124,58535.0,58534.0,0.34168101]
[1724078854178,0.1542124,58535.0,58534.0,0.51252001]
[1724078854679,0.1448,58535.0,58534.0,1e-08]
[1724078854896,0.17031619,58535.0,58534.0,1e-08]
[1724078855120,0.22298582,58535.0,58534.0,1e-08]
[1724078855413,0.17031619,58535.0,58534.0,0.17084001]
[1724078855836,0.17031619,58535.0,58534.0,0.51352101]
[1724078856044,0.17031619,58535.0,58534.0,1e-08]
[1724078856437,0.18031625,58535.0,58534.0,0.00100001]
[1724078856722,0.18731625,58535.0,58534.0,0.17284001]
[1724078856924,0.18731625,58535.0,58534.0,0.51452101]
[1724078857099,0.18731625,58535.0,58534.0,0.17284001]
[1724078857704,0.18731625,58535.0,58534.0,0.00200001]
[1724078858004,0.18731625,58535.0,58534.0,0.17284001]
[1724078858568,0.17121199,58535.0,58534.0,0.17284001]
[1724078858823,0.18731586,58535.0,58534.0,0.17284001]
[1724078859248,0.75208334,58535.0,58534.0,0.00200001]
[1724078859521,0.71608485,58535.0,58534.0,0.00200001]
[1724078860164,0.37440985,58535.0,58534.0,0.00200001]
[1724078860364,0.71608485,58535.0,58534.0,0.00200001]
[1724078860601,0.83527724,58535.0,58534.0,0.00200001]
[1724078860806,0.49360224,58535.0,58534.0,0.00200001]
[1724078861031,0.83527724,58535.0,58534.0,0.00200001]
[1724078861158,0.37440985,58535.0,58534.0,0.00200001]
[1724078861366,0.20357363,58535.0,58534.0,0.17284001]
[1724078861568,0.20357363,58535.0,58534.0,0.00200001]
[1724078861793,0.20357363,58535.0,58534.0,0.17284001]
[1724078861957,0.28046134,58535.0,58534.0,0.00200001]
[1724078862151,0.12227363,58535.0,58534.0,0.17284001]
[1724078862379,0.12227363,58535.0,58534.0,0.85620201]
[1724078862380,0.10601664,58535.0,58534.0,0.85620201]
[1724078862804,0.10601664,58535.0,58534.0,0.51452101]
[1724078864053,0.04251664,58535.0,58534.0,0.85620201]
[1724078864456,0.04251664,58535.0,58534.0,0.51452101]
[1724078864762,0.04251664,58535.0,58534.0,0.85620201]
[1724078864999,0.03310369,58535.0,58534.0,0.85620201]
[1724078865200,0.04251548,58535.0,58534.0,1.67284001]
[1724078865404,0.04251548,58535.0,58534.0,2.01452101]
[1724078865607,0.04251548,58535.0,58534.0,1.67284001]
[1724078865815,0.04251548,58535.0,58534.0,2.01452101]
[1724078866214,0.04251548,58535.0,58534.0,2.35620201]
[1724078867252,0.04251548,58535.0,58534.0,0.85620201]
[1724078867771,0.04251548,58535.0,58534.0,2.35620201]
[1724078868091,0.04251548,58535.0,58534.0,2.77418301]
[1724078869061,0.02641179,58535.0,58534.0,2.87418301]
[1724078869470,0.017,58535.0,58534.0,2.87418301]
[1724078869673,0.017,58535.0,58534.0,3.04453178]
[1724078869875,0.00082,58537.0,58536.0,1.195845]
[1724078870102,0.01023029,58537.0,58536.0,1.195845]
[1724078870716,0.01023029,58537.0,58536.0,0.854175]
[1724078870929,0.09033204,58537.0,58534.0,0.10300001]
[1724078871152,0.09033204,58537.0,58535.0,0.341675]
[1724078871153,0.02551204,58536.0,58535.0,0.341675]
[1724078871386,0.02551204,58536.0,58535.0,0.512512]
[1724078871591,0.02551282,58536.0,58535.0,0.512512]
[1724078872005,0.02551282,58536.0,58534.0,0.17083801]
[1724078872205,0.10513094,58537.0,58534.0,1e-08]
[1724078872412,0.025514,58536.0,58534.0,0.17083901]
[1724078872623,0.025514,58535.0,58534.0,1e-08]
[1724078872822,0.025514,58535.0,58534.0,0.17083901]
[1724078873229,0.006,58536.0,58535.0,0.170837]
[1724078873439,0.03136712,58536.0,58535.0,0.170837]
[1724078873850,0.02195579,58536.0,58535.0,0.512512]
[1724078874058,0.03136712,58536.0,58535.0,0.512512]
[1724078874259,0.00941133,58536.0,58535.0,0.512512]
[1724078874436,0.00941133,58536.0,58535.0,0.854187]
[1724078874675,0.01341133,58536.0,58535.0,0.854187]
[1724078875080,0.01341133,58536.0,58535.0,1.272162]
[1724078875411,0.02041133,58536.0,58535.0,2.773162]
[1724078876910,0.011,58536.0,58535.0,3.28618577]
[1724078877476,0.02040989,58536.0,58535.0,2.94451077]
[1724078878182,0.011,58536.0,58535.0,2.94451077]
[1724078878535,0.02040992,58536.0,58535.0,2.94451077]
[1724078878737,0.011,58536.0,58535.0,2.94451077]
[1724078879169,0.011,58536.0,58535.0,3.46968577]
[1724078879548,0.01182,58536.0,58535.0,3.46968577]
[1724078880292,0.00782,58536.0,58535.0,3.46968577]
[1724078880539,0.00082,58536.0,58535.0,3.46868577]
[1724078880711,0.00182,58536.0,58535.0,3.48068577]
[1724078881083,0.00182,58536.0,58535.0,3.13901077]
[1724078881291,0.00182,58536.0,58535.0,3.05551077]
[1724078881688,0.01122976,58536.0,58535.0,0.966187]
[1724078882143,0.01122976,58536.0,58535.0,1.307862]
[1724078882264,0.01122976,58536.0,58535.0,0.966187]
[1724078883133,0.01022976,58536.0,58535.0,1.299862]
[1724078883594,0.01022976,58536.0,58535.0,2.796862]
[1724078883798,0.01022976,58536.0,58535.0,2.455187]
[1724078884095,0.01423005,58536.0,58535.0,2.455187]
[1724078884294,0.09143026,58536.0,58535.0,0.270837]
[1724078884503,0.09143026,58536.0,58535.0,0.1]
[1724078884504,0.08743026,58536.0,58535.0,0.1]
[1724078884752,0.08943026,58536.0,58535.0,0.512512]
[1724078884958,0.08743026,58536.0,58535.0,0.612512]
[1724078885169,0.08743026,58536.0,58535.0,0.270837]
[1724078885385,0.08743026,58536.0,58535.0,0.1]
[1724078885591,0.08743026,58536.0,58535.0,0.612512]
[1724078885810,0.08843026,58536.0,58535.0,0.612512]
[1724078886044,0.02733026,58536.0,58535.0,1.037487]
[1724078886216,0.01123005,58536.0,58535.0,1.20883577]
[1724078886444,0.01123005,58536.0,58535.0,1.55151077]
[1724078886661,0.01123005,58536.0,58535.0,2.70883577]
[1724078886848,0.02733117,58536.0,58535.0,2.70883577]
[1724078887046,0.02933117,58536.0,58535.0,2.70883577]
[1724078887279,0.0293316,58536.0,58535.0,2.454187]
[1724078887460,0.0293316,58536.0,58535.0,0.612512]
[1724078887665,0.1755316,58536.0,58535.0,0.612512]
[1724078887866,0.19578608,58536.0,58535.0,0.270837]
[1724078888072,0.19578608,58536.0,58535.0,0.1]
[1724078888278,0.19578608,58536.0,58534.0,0.00090201]
[1724078888279,0.38741029,58536.0,58534.0,0.00090201]
[1724078888492,0.04176608,58535.0,58534.0,0.00090201]
[1724078888696,0.04176608,58535.0,58534.0,0.51342301]
[1724078888905,0.04176608,58535.0,58534.0,0.85510401]
[1724078889116,0.0255116,58535.0,58534.0,0.85510401]
[1724078890363,0.0285116,58535.0,58534.0,0.85510401]
[1724078891011,0.0124106,58535.0,58534.0,0.85510401]
[1724078891237,0.0174106,58535.0,58534.0,1.19678501]
[1724078891467,0.03351189,58535.0,58534.0,1.44833378]
[1724078891663,0.0174106,58535.0,58534.0,1.54833378]
[1724078891862,0.0174106,58535.0,58534.0,3.04833378]
[1724078892065,0.0174106,58535.0,58534.0,3.39001478]
[1724078892285,0.008,58535.0,58534.0,3.47931478]
[1724078893530,0.008,58535.0,58534.0,0.95510401]
[1724078893531,0.003,58535.0,58534.0,0.95510401]
[1724078893752,0.01240955,58535.0,58534.0,0.96110401]
[1724078893955,0.025511,58535.0,58534.0,0.96110401]
[1724078894379,0.01040955,58535.0,58534.0,0.96410401]
[1724078894553,0.02551027,58535.0,58534.0,1.29878501]
[1724078894770,0.00082,58536.0,58535.0,0.854187]
[1724078894966,0.02633144,58536.0,58535.0,0.954187]
[1724078895375,0.01692168,58536.0,58535.0,0.954187]
[1724078895572,0.02633247,58536.0,58535.0,0.954187]
[1724078896610,0.02633247,58536.0,58535.0,1.295862]
[1724078896754,0.02633247,58536.0,58535.0,1.376162]
[1724078896961,0.03233247,58536.0,58535.0,1.54851077]
[1724078897162,0.01623079,58536.0,58535.0,1.54851077]
[1724078897380,0.01623079,58536.0,58535.0,1.91318577]
[1724078897572,0.01923079,58536.0,58535.0,1.91318577]
[1724078897970,0.01323079,58536.0,58535.0,1.91218577]
[1724078898378,0.01323079,58536.0,58535.0,3.75386077]
[1724078898379,0.01523079,58536.0,58535.0,3.75386077]
[1724078898606,0.00582,58536.0,58535.0,3.75386077]
[1724078898906,0.00582,58536.0,58535.0,3.81546077]
[1724078899261,0.00582,58536.0,58535.0,3.82569692]
[1724078899964,0.00182,58536.0,58535.0,3.49102192]
[1724078900163,0.00182,58536.0,58535.0,3.49402192]
[1724078900340,0.00082,58536.0,58535.0,3.48702192]
[1724078900697,0.00182,58536.0,58535.0,3.49202192]
[1724078901101,0.00182,58536.0,58535.0,3.49602192]
[1724078901549,0.00082,58536.0,58535.0,3.48402192]
[1724078901892,0.00082,58536.0,58535.0,3.42942192]
[1724078901893,0.00182,58536.0,58535.0,3.42942192]
[1724078902123,0.07192949,58536.0,58535.0,2.47142315]
[1724078902325,0.08803004,58536.0,58535.0,0.519512]
[1724078902587,0.08803089,58536.0,58535.0,0.519512]
[1724078902783,0.08803089,58536.0,58535.0,2.019512]
[1724078902969,0.08803089,58536.0,58535.0,2.022512]
[1724078903168,0.21669023,58536.0,58535.0,2.023414]
[1724078903366,0.23294445,58536.0,58535.0,1.678739]
[1724078903716,1.00489344,58536.0,58535.0,1.500902]
[1724078903872,1.12709034,58536.0,58535.0,1.501902]
[1724078904094,1.12709034,58536.0,58535.0,0.001902]
[1724078904095,1.68551512,58536.0,58535.0,0.001902]
[1724078904310,2.44424715,58536.0,58535.0,0.001902]
[1724078904639,2.44824715,58536.0,58535.0,0.001902]
[1724078904863,2.10657715,58536.0,58535.0,0.001902]
[1724078905040,2.44824715,58536.0,58535.0,0.001902]
[1724078905249,2.45024715,58536.0,58535.0,0.001902]
[1724078905460,2.44624715,58536.0,58535.0,0.001902]
[1724078906419,0.0788,58525.0,58521.0,0.170878]
[1724078906653,0.11506529,58522.0,58521.0,0.854392]
[1724078906860,0.0639,58522.0,58521.0,0.854392]
[1724078907019,0.08941882,58522.0,58521.0,0.512635]
[1724078907616,0.02551882,58522.0,58521.0,0.512635]
[1724078907997,0.02551882,58522.0,58521.0,0.514635]
[1724078908202,0.02551882,58522.0,58521.0,0.512635]
[1724078908472,0.02851882,58522.0,58521.0,0.512635]
[1724078908684,0.03251882,58522.0,58521.0,0.512635]
[1724078908897,0.01341291,58522.0,58521.0,1.54879777]
[1724078909142,0.01341291,58522.0,58521.0,1.57179777]
[1724078909360,0.004,58522.0,58521.0,1.91355477]
[1724078909781,0.004,58522.0,58521.0,3.41355477]
[1724078909987,0.0511528,58531.0,58530.0,0.170852]
[1724078910192,0.04177346,58531.0,58530.0,0.170852]
[1724078910617,0.42469709,58531.0,58530.0,0.512557]
[1724078910823,0.04177346,58531.0,58528.0,0.170857]
[1724078911035,0.04177346,58531.0,58529.0,0.170855]
[1724078911036,0.20732971,58530.0,58529.0,0.170855]
[1724078911256,0.56186883,58530.0,58529.0,0.170855]
[1724078911462,0.56186883,58530.0,58526.0,0.341722]